{"text_format":"3","workbook":"xlsx","n_sheets":2,"sheets":["Início","Plan. Orçamento Época Festiva"],"not_rendered":{"defined_names":1},"read":"whole","date_system":"1900"}

{"sheet":"Início","index":0,"n_rows":7,"n_cols":2,"rows_kept":7}
[null,"ACERCA DESTE MODELO"]
[null,"Controle as suas despesas com este Planeador de Orçamento de Época Festiva"]
[null,"Introduza o Orçamento e Despesas Real incorridos no vários itens nas tabelas."]
[null,"O Orçamento Para Época Festiva, a Quantia Total Real Gasta e a Diferença são automaticamente calculados."]
[null,"Nota: "]
[null,"Existem instruções adicionais na coluna A na folha de cálculo PLANEADOR DE ORÇAMENTO DE ÉPOCA FESTIVA. O texto está oculto intencionalmente. Para remover o texto, selecione a coluna A e, em seguida, selecione Eliminar. Para mostrar o texto, selecione a coluna A e, em seguida, mude a cor do tipo de letra."]
[null,"Para saber mais sobre as tabelas, prima Shift+F10 numa tabela, selecione a opção Tabela e, em seguida, selecione Texto Alternativo."]

{"sheet":"Plan. Orçamento Época Festiva","index":1,"n_rows":32,"n_cols":12,"rows_kept":32,"merged":[[1,1,5,4],[2,8,2,9],[3,8,3,9],[4,8,4,9],[6,1,6,4],[6,8,6,11],[15,1,15,4],[15,8,15,11],[25,1,25,4],[25,8,25,11]]}
["Introduza o Orçamento e as Despesas Real incorridos para cada categoria nas respetivas tabelas nesta folha de cálculo. Existem instruções úteis sobre como utilizar esta folha de cálculo nas células desta coluna. Prima a Seta para Baixo para começar. "]
["O título desta folha de cálculo está na célula à direita.","Planeador De Orçamento De ÉPoca Festiva"]
["O Orçamento Para Época Festiva é calculado automaticamente na célula K3.",{"$nulls":7},"ORÇAMENTO PARA ÉPOCA FESTIVA",null,{"$f":"SUM(Presentes[Orçamento],Embrulho[Orçamento],(Viagens[Orçamento],(Refeições[Orçamento],(Lazer[Orçamento],Diversos[Orçamento]))))","v":{"v":750,"d":"750.00 €"}}]
["O Gasto Real é calculado automaticamente na célula K4.",{"$nulls":7},"GASTO REAL",null,{"$f":"SUM((Presentes[Real],(Embrulho[Real],(Viagens[Real],(Refeições[Real],(Lazer[Real],(Diversos[Real])))))))","v":{"v":820,"d":"820.00 €"}}]
["A Diferença é calculada automaticamente na célula K5. A instrução seguinte está na célula A7.",{"$nulls":7},"DIFERENÇA (acima/abaixo do orçamento)",null,{"$f":"SUM(K3-K4)","v":{"v":-70,"d":"-70.00 €"}}]
[]
["A etiqueta Presentes está na célula à direita e a etiqueta Refeições de Época Festiva está na célula I7.","Presentes",{"$nulls":6},"Refeições de Época Festiva"]
["Introduza os gastos em Presentes na tabela a partir da célula à direita e as Refeições na tabela a partir da célula I8. A instrução seguinte está na célula A16.","Item","Orçamento","Real","Diferença",{"$nulls":3},"Item","Orçamento","Real","Diferença"]
[null,"Família",{"v":500,"d":"500.00 €"},{"v":495,"d":"495.00 €"},{"$f":"Presentes[[#This Row],[Orçamento]]-Presentes[[#This Row],[Real]]","v":{"v":5,"d":"5.00 €"}},{"$nulls":3},"Compras",null,null,{"$f":"Refeições[[#This Row],[Orçamento]]-Refeições[[#This Row],[Real]]","v":{"v":0,"d":"0.00 €"}}]
[null,"Amigos",{"v":250,"d":"250.00 €"},{"v":325,"d":"325.00 €"},{"$f":"Presentes[[#This Row],[Orçamento]]-Presentes[[#This Row],[Real]]","v":{"v":-75,"d":"-75.00 €"}},{"$nulls":3},"Libações",null,null,{"$f":"Refeições[[#This Row],[Orçamento]]-Refeições[[#This Row],[Real]]","v":{"v":0,"d":"0.00 €"}}]
[null,"Colegas de trabalho",null,null,{"$f":"Presentes[[#This Row],[Orçamento]]-Presentes[[#This Row],[Real]]","v":{"v":0,"d":"0.00 €"}},{"$nulls":3},"Decorações",null,null,{"$f":"Refeições[[#This Row],[Orçamento]]-Refeições[[#This Row],[Real]]","v":{"v":0,"d":"0.00 €"}}]
[null,"Professores, amas, baby-sitters, etc.",null,null,{"$f":"Presentes[[#This Row],[Orçamento]]-Presentes[[#This Row],[Real]]","v":{"v":0,"d":"0.00 €"}},{"$nulls":3},"Outros (separador na última coluna desta linha para adicionar linha)",null,null,{"$f":"Refeições[[#This Row],[Orçamento]]-Refeições[[#This Row],[Real]]","v":{"v":0,"d":"0.00 €"}}]
[null,"Donativos para a caridade",null,null,{"$f":"Presentes[[#This Row],[Orçamento]]-Presentes[[#This Row],[Real]]","v":{"v":0,"d":"0.00 €"}},{"$nulls":3},"Total",{"$f":"SUBTOTAL(109,Refeições[Orçamento])","v":{"v":0,"d":"0.00 €"}},{"$f":"SUBTOTAL(109,Refeições[Real])","v":{"v":0,"d":"0.00 €"}},{"$f":"SUBTOTAL(109,Refeições[Diferença])","v":{"v":0,"d":"0.00 €"}}]
[null,"Outros (separador na última coluna desta linha para adicionar linha)",null,null,{"$f":"Presentes[[#This Row],[Orçamento]]-Presentes[[#This Row],[Real]]","v":{"v":0,"d":"0.00 €"}}]
[null,"Total",{"$f":"SUBTOTAL(109,Presentes[Orçamento])","v":{"v":750,"d":"750.00 €"}},{"$f":"SUBTOTAL(109,Presentes[Real])","v":{"v":820,"d":"820.00 €"}},{"$f":"SUBTOTAL(109,Presentes[Diferença])","v":{"v":-70,"d":"-70.00 €"}}]
["A etiqueta Embrulho está na célula à direita e a etiqueta Lazer na célula I16.","Embrulho",{"$nulls":6},"Lazer"]
["Introduza as despesas em Embrulhos na tabela a partir da célula à direita e o Lazer na tabela a partir da célula I17. A instrução seguinte está na célula A26.","Item","Orçamento","Real","Diferença",{"$nulls":3},"Item","Orçamento","Real","Diferença"]
[null,"Papel de embrulho",null,null,{"$f":"Embrulho[[#This Row],[Orçamento]]-Embrulho[[#This Row],[Real]]","v":{"v":0,"d":"0.00 €"}},{"$nulls":3},"Ajuda para a festa (empregado de bar, catering, limpeza, etc.)",null,null,{"$f":"Lazer[[#This Row],[Orçamento]]-Lazer[[#This Row],[Real]]","v":{"v":0,"d":"0.00 €"}}]
[null,"Etiquetas",null,null,{"$f":"Embrulho[[#This Row],[Orçamento]]-Embrulho[[#This Row],[Real]]","v":{"v":0,"d":"0.00 €"}},{"$nulls":3},"Decorações",null,null,{"$f":"Lazer[[#This Row],[Orçamento]]-Lazer[[#This Row],[Real]]","v":{"v":0,"d":"0.00 €"}}]
[null,"Materiais (laços, fitas, etc.)",null,null,{"$f":"Embrulho[[#This Row],[Orçamento]]-Embrulho[[#This Row],[Real]]","v":{"v":0,"d":"0.00 €"}},{"$nulls":3},"Alimentação e bebidas",null,null,{"$f":"Lazer[[#This Row],[Orçamento]]-Lazer[[#This Row],[Real]]","v":{"v":0,"d":"0.00 €"}}]
[null,"Caixas",null,null,{"$f":"Embrulho[[#This Row],[Orçamento]]-Embrulho[[#This Row],[Real]]","v":{"v":0,"d":"0.00 €"}},{"$nulls":3},"Vestuário",null,null,{"$f":"Lazer[[#This Row],[Orçamento]]-Lazer[[#This Row],[Real]]","v":{"v":0,"d":"0.00 €"}}]
[null,"Correio",null,null,{"$f":"Embrulho[[#This Row],[Orçamento]]-Embrulho[[#This Row],[Real]]","v":{"v":0,"d":"0.00 €"}},{"$nulls":3},"Bilhetes",null,null,{"$f":"Lazer[[#This Row],[Orçamento]]-Lazer[[#This Row],[Real]]","v":{"v":0,"d":"0.00 €"}}]
[null,"Outros (separador na última coluna desta linha para adicionar linha)",null,null,{"$f":"Embrulho[[#This Row],[Orçamento]]-Embrulho[[#This Row],[Real]]","v":{"v":0,"d":"0.00 €"}},{"$nulls":3},"Jantares fora",null,null,{"$f":"Lazer[[#This Row],[Orçamento]]-Lazer[[#This Row],[Real]]","v":{"v":0,"d":"0.00 €"}}]
[null,"Total",{"$f":"SUBTOTAL(109,Embrulho[Orçamento])","v":{"v":0,"d":"0.00 €"}},{"$f":"SUBTOTAL(109,Embrulho[Real])","v":{"v":0,"d":"0.00 €"}},{"$f":"SUBTOTAL(109,Embrulho[Diferença])","v":{"v":0,"d":"0.00 €"}},{"$nulls":3},"Outros (separador na última coluna desta linha para adicionar linha)",null,null,{"$f":"Lazer[[#This Row],[Orçamento]]-Lazer[[#This Row],[Real]]","v":{"v":0,"d":"0.00 €"}}]
[{"$nulls":8},"Total",{"$f":"SUBTOTAL(109,Lazer[Orçamento])","v":{"v":0,"d":"0.00 €"}},{"$f":"SUBTOTAL(109,Lazer[Real])","v":{"v":0,"d":"0.00 €"}},{"$f":"SUBTOTAL(109,Lazer[Diferença])","v":{"v":0,"d":"0.00 €"}}]
["A etiqueta Viagens está na célula à direita e a etiqueta Diversos está na célula I26.","Viagens",{"$nulls":6},"Diversos"]
["Introduza os gastos em Viagens na tabela a partir da célula à direita e as despesas em Diversos na tabela a partir da célula I27.","Item","Orçamento","Real","Diferença",{"$nulls":3},"Item","Orçamento","Real","Diferença"]
[null,"Passagens Aéreas",null,null,{"$f":"Viagens[[#This Row],[Orçamento]]-Viagens[[#This Row],[Real]]","v":{"v":0,"d":"0.00 €"}},{"$nulls":3},"Fotografias de época festiva",null,null,{"$f":"Diversos[[#This Row],[Orçamento]]-Diversos[[#This Row],[Real]]","v":{"v":0,"d":"0.00 €"}}]
[null,"Alojamento",null,null,{"$f":"Viagens[[#This Row],[Orçamento]]-Viagens[[#This Row],[Real]]","v":{"v":0,"d":"0.00 €"}},{"$nulls":3},"Combustível ",null,null,{"$f":"Diversos[[#This Row],[Orçamento]]-Diversos[[#This Row],[Real]]","v":{"v":0,"d":"0.00 €"}}]
[null,"Transportes",null,null,{"$f":"Viagens[[#This Row],[Orçamento]]-Viagens[[#This Row],[Real]]","v":{"v":0,"d":"0.00 €"}},{"$nulls":3},"Outros (separador na última coluna desta linha para adicionar linha)",null,null,{"$f":"Diversos[[#This Row],[Orçamento]]-Diversos[[#This Row],[Real]]","v":{"v":0,"d":"0.00 €"}}]
[null,"Outros (separador na última coluna desta linha para adicionar linha)",null,null,{"$f":"Viagens[[#This Row],[Orçamento]]-Viagens[[#This Row],[Real]]","v":{"v":0,"d":"0.00 €"}},{"$nulls":3},"Total",{"$f":"SUBTOTAL(109,Diversos[Orçamento])","v":{"v":0,"d":"0.00 €"}},{"$f":"SUBTOTAL(109,Diversos[Real])","v":{"v":0,"d":"0.00 €"}},{"$f":"SUBTOTAL(109,Diversos[Diferença])","v":{"v":0,"d":"0.00 €"}}]
[null,"Total",{"$f":"SUBTOTAL(109,Viagens[Orçamento])","v":{"v":0,"d":"0.00 €"}},{"$f":"SUBTOTAL(109,Viagens[Real])","v":{"v":0,"d":"0.00 €"}},{"$f":"SUBTOTAL(109,Viagens[Diferença])","v":{"v":0,"d":"0.00 €"}}]